bitfinex-derivatives/quotes_SOLF0:USTF0_20241029
["timestamp","ask_amount","ask_price","bid_price","bid_amount"]
[1730187947887,5.97988292,179.93,179.87,8.45608292]
[1730187948085,8.76108292,179.93,179.87,8.45608292]
[1730187948790,8.76108292,179.93,179.88,5.97988292]
[1730187950295,8.76108292,179.93,179.9,2.7816]
[1730187953494,2.7812,179.93,179.9,2.7816]
[1730187954096,5.97988292,179.93,179.88,5.97988292]
[1730187954296,5.97988292,179.93,179.87,2.4762]
[1730187955198,2.7813,179.92,179.89,2.7817]
[1730187958906,2.7818,179.9,179.87,4.0457]
[1730187959306,2.7818,179.89,179.87,1.2637]
[1730187959508,5.97988292,179.88,179.84,1.2831]
[1730187959807,5.97988292,179.88,179.83,5.97988292]
[1730187960009,2.7822,179.87,179.84,2.7825]
[1730187961016,2.7823,179.86,179.83,2.7827]
[1730187961509,8.76228292,179.85,179.81,2.783]
[1730187962616,8.76228292,179.85,179.82,2.7828]
[1730187963414,5.97988292,179.85,179.82,2.7828]
[1730187963609,2.7823,179.86,179.82,2.7828]
[1730187963809,2.7823,179.86,179.82,8.76268292]
[1730187964009,4.04,179.87,179.85,2.7823]
[1730187964213,8.76178292,179.89,179.84,5.97988292]
[1730187964415,4.04,179.9,179.85,5.97988292]
[1730187964615,4.04,179.9,179.86,5.97988292]
[1730187965113,4.04,179.9,179.87,2.7821]
[1730187968218,2.7816,179.91,179.87,2.7821]
[1730187968424,10.01988292,179.93,179.86,5.97988292]
[1730187968617,6.8212,179.93,179.9,2.7816]
[1730187968824,6.8212,179.93,179.88,5.97988292]
[1730187969215,10.01988292,179.93,179.87,5.97988292]
[1730187969423,5.97988292,179.91,179.87,5.97988292]
[1730187969623,5.97988292,179.91,179.85,5.97988292]
[1730187969823,8.76148292,179.91,179.85,5.97988292]
[1730187970822,8.76148292,179.91,179.87,2.7821]
[1730187972017,8.76148292,179.91,179.87,8.76198292]
[1730187972722,4.04,179.93,179.89,2.7817]
[1730187972723,12.80118292,179.93,179.89,2.7817]
[1730187973121,4.04,179.93,179.91,2.7813]
[1730187973317,5.97988292,179.92,179.87,5.97988292]
[1730187973919,4.04,179.93,179.9,2.7815]
[1730187974325,6.8212,179.93,179.9,2.7815]
[1730187975822,5.97988292,179.92,179.87,5.97988292]
[1730187976025,5.97988292,179.9,179.85,7.22648292]
[1730187977021,2.7815,179.91,179.87,2.782]
[1730187977327,5.97988292,179.92,179.87,2.782]
[1730187978024,4.04,179.93,179.88,5.97988292]
[1730187978330,4.04,179.93,179.89,2.7817]
[1730187979025,2.7815,179.91,179.88,8.76178292]
[1730187980824,6.8213,179.93,179.89,2.7817]
[1730187982230,2.7815,179.91,179.85,1.2466]
[1730187982422,2.7815,179.91,179.86,5.97988292]
[1730187982733,8.76128292,179.92,179.88,2.7818]
[1730187983428,2.7814,179.92,179.88,2.7818]
[1730187983736,2.7814,179.92,179.89,2.7817]
[1730187984325,2.7814,179.92,179.86,5.97988292]
[1730187984529,8.76148292,179.91,179.86,5.97988292]
[1730187984731,5.97988292,179.91,179.86,5.97988292]
[1730187985132,5.97988292,179.89,179.82,1.1977]
[1730187985332,5.97988292,179.89,179.83,5.97988292]
[1730187985529,9.99988292,179.89,179.83,5.97988292]
[1730187985740,2.782,179.88,179.85,2.7824]
[1730187986836,2.7824,179.85,179.82,2.7828]
[1730187987930,8.76218292,179.86,179.82,2.7828]
[1730187988639,2.7827,179.84,179.81,3.982]
[1730187988843,5.97988292,179.85,179.81,3.982]
[1730187991241,2.7826,179.84,179.81,3.982]
[1730187991541,5.97988292,179.85,179.81,3.982]
[1730187991747,11.77696099,179.96,179.83,8.76248292]
[1730187991934,2.7821,179.87,179.83,5.97988292]
[1730187992635,6.802,179.88,179.85,2.7824]
[1730187993542,2.782,179.88,179.85,2.7824]
[1730187994447,2.782,179.88,179.83,5.97988292]
[1730187994737,2.782,179.88,179.84,2.7825]
[1730187995831,8.76188292,179.88,179.84,2.7825]
[1730187996038,5.97988292,179.88,179.84,2.7825]
[1730187996235,2.7821,179.87,179.84,2.7825]
[1730187998238,4.02,179.89,179.87,2.7821]
[1730187998744,5.97988292,179.91,179.85,5.97988292]
[1730187998745,4.02,179.9,179.85,5.97988292]
[1730187999650,6.8017,179.9,179.87,2.782]
[1730188001252,4.02,179.9,179.88,2.7819]
[1730188001648,4.02,179.9,179.87,5.97988292]
[1730188002249,4.02,179.9,179.87,8.76188292]
[1730188003150,6.8016,179.9,179.87,8.76188292]
[1730188003346,2.7816,179.9,179.87,8.76188292]
[1730188004752,2.7816,179.9,179.87,2.782]
[1730188011854,6.8016,179.91,179.86,5.97988292]
[1730188013164,6.8016,179.91,179.88,2.7818]
[1730188015367,2.7819,179.89,179.86,2.7822]
[1730188032869,4.02,179.91,179.87,5.97988292]
[1730188033063,60.08,180.02,179.89,5.97988292]
[1730188033266,5.97988292,179.96,179.89,5.97988292]
[1730188033473,5.97988292,179.96,179.91,5.97988292]
[1730188034170,2.7809,179.95,179.92,2.7813]
[1730188034773,6.7807,179.96,179.93,2.7811]
[1730188035073,6.7807,179.96,179.91,5.97988292]
[1730188035259,2.7807,179.96,179.91,5.97988292]
[1730188035664,9.97988292,179.97,179.91,5.97988292]
[1730188035665,2.7809,179.95,179.91,5.97988292]
[1730188041677,2.7809,179.95,179.91,8.76138292]
[1730188042081,6.7807,179.97,179.93,5.97988292]
[1730188042570,4.0,179.97,179.93,5.97988292]
[1730188042884,2.7808,179.96,179.92,5.97988292]
[1730188047876,2.7808,179.96,179.93,5.97988292]
[1730188048483,9.97988292,179.99,179.94,5.97988292]
[1730188048682,2.7806,179.97,179.94,5.97988292]
[1730188053686,2.7806,179.97,179.95,5.97988292]
[1730188056282,4.0,179.99,179.95,5.97988292]
[1730188056482,10.56666099,180.01,179.98,5.97988292]
[1730188056693,4.0,180.01,179.98,5.97988292]
[1730188057384,6.78,180.01,179.98,8.76028292]
[1730188057886,6.78,180.01,179.98,2.7804]
[1730188058088,6.78,180.01,179.98,8.76028292]
[1730188058590,6.78,180.01,179.98,5.97988292]
[1730188059188,2.7796,180.02,179.98,8.75988292]
[1730188059384,2.7796,180.02,179.98,5.97988292]
[1730188059585,4.0,180.03,179.98,5.97988292]
[1730188059785,6.7794,180.03,179.99,5.97988292]
[1730188060186,10.56666099,180.06,180.04,2.7792]
[1730188060398,134.45445134,180.07,180.02,5.97988292]
[1730188060585,131.67565134,180.07,180.02,5.97988292]
[1730188060889,2.7788,180.07,180.03,2.7792]
[1730188061483,2.7787,180.08,180.04,8.75898292]
[1730188062287,9.97988292,180.09,180.05,2.779]
[1730188062288,2.7784,180.09,180.05,2.779]
[1730188062482,2.7784,180.09,180.06,5.97988292]
[1730188063479,4.0,180.1,180.06,5.97988292]
[1730188063684,2.7786,180.08,180.06,5.97988292]
[1730188065785,4.0,180.1,180.06,5.97988292]
[1730188066391,4.0,180.1,180.07,5.97988292]
[1730188066979,5.97988292,180.12,180.07,5.97988292]
[1730188067190,5.97988292,180.1,180.04,1.283]
[1730188067384,5.97988292,180.1,180.04,7.26288292]
[1730188067585,2.779,180.06,180.01,2.7796]
[1730188067780,2.779,180.06,180.03,5.97988292]
[1730188068487,2.779,180.06,180.02,2.7794]
[1730188068900,5.97988292,180.09,180.03,5.97988292]
[1730188069287,5.97988292,180.07,180.03,5.97988292]
[1730188069488,5.97988292,180.07,179.99,5.2297]
[1730188069796,2.779,180.06,180.02,8.75938292]
[1730188070796,5.97988292,180.07,180.02,5.97988292]
[1730188071003,2.7793,180.04,180.02,5.97988292]
[1730188072494,5.97988292,180.03,179.99,1.2297]
[1730188072700,5.97988292,180.05,179.99,7.20958292]
[1730188072896,8.75898292,180.05,180.01,8.75948292]
[1730188073100,2.7791,180.05,180.02,5.97988292]
[1730188074500,2.7791,180.05,180.02,8.75938292]
[1730188075500,2.7791,180.05,180.02,5.97988292]
[1730188076207,9.97988292,180.08,180.02,5.97988292]
[1730188077302,2.7791,180.05,180.02,5.97988292]
[1730188078491,2.7791,180.05,180.01,2.7796]
[1730188079499,2.7795,180.03,180.0,2.7798]
[1730188086910,2.7795,180.03,179.99,1.2297]
[1730188086911,2.7798,180.01,179.99,1.2297]
[1730188088906,2.7798,180.01,179.99,7.20958292]
[1730188089205,2.7795,180.02,179.99,7.20958292]
[1730188089506,2.7795,180.02,179.99,9.98948292]
[1730188091306,4.0,180.04,179.99,7.20958292]
[1730188091499,6.7793,180.04,180.0,5.97988292]
[1730188091911,2.7795,180.03,180.0,8.75968292]
[1730188093305,4.0,180.04,180.0,8.75968292]
[1730188093504,4.0,180.04,179.99,1.2297]
[1730188093505,4.0,180.07,180.02,5.97988292]
[1730188094308,4.0,180.08,180.02,5.97988292]
[1730188094497,9.97988292,180.09,180.02,5.97988292]
[1730188094703,2.7788,180.07,180.04,2.7792]
[1730188097207,2.7788,180.07,180.02,5.97988292]
[1730188097208,2.7788,180.07,180.03,2.7793]
[1730188097804,2.7789,180.06,180.03,2.7793]
[1730188098410,5.97988292,180.08,180.02,5.97988292]
[1730188098718,2.7791,180.05,180.02,8.75928292]
[1730188100922,2.7786,180.09,180.05,2.779]
[1730188101121,2.7786,180.09,179.99,5.2297]
[1730188101122,10.71731803,180.19,180.06,5.97988292]
[1730188101414,2.7782,180.11,180.08,8.75848292]
[1730188102314,2.7782,180.11,180.08,5.97988292]
[1730188104011,2.7782,180.11,180.07,2.7787]
[1730188105224,5.97988292,180.12,180.06,5.97988292]
[1730188105408,5.97988292,180.1,180.05,1.1931]
[1730188106319,2.7786,180.08,180.05,3.9721]
[1730188106519,2.7786,180.08,180.05,1.1931]
[1730188107520,2.7786,180.08,180.05,9.95198292]
[1730188130546,5.97988292,180.09,180.05,1.1931]
[1730188131144,2.7787,180.08,180.05,7.17298292]
[1730188132735,2.7787,180.08,180.05,9.95198292]
[1730188132947,3.98,180.11,180.07,5.97988292]
[1730188133448,16.27141803,180.19,180.08,5.97988292]
[1730188133636,5.97988292,180.15,180.08,5.97988292]
[1730188133841,2.7782,180.11,180.08,5.97988292]
[1730188134747,2.7782,180.11,180.08,8.75848292]
[1730188135943,2.778,180.12,180.08,8.75848292]
[1730188137345,3.98,180.14,180.08,8.75848292]
[1730188137745,2.7781,180.12,180.08,8.75848292]
[1730188138143,3.98,180.15,180.11,8.75798292]
[1730188138450,3.98,180.15,180.11,5.97988292]
[1730188138949,2.7779,180.13,180.1,8.75808292]
[1730188139452,10.37821803,180.19,180.1,5.97988292]
[1730188139636,2.7777,180.14,180.11,2.7781]
[1730188140047,2.7777,180.14,180.11,8.75798292]
[1730188142746,2.7775,180.15,180.11,8.75798292]
[1730188143252,6.7574,180.16,180.12,2.7779]
[1730188143454,6.7574,180.16,180.11,5.97988292]
[1730188143455,2.7774,180.16,180.13,5.97988292]
[1730188143841,3.98,180.17,180.13,5.97988292]
[1730188144047,14.35821803,180.19,180.15,5.97988292]
[1730188144654,3.98,180.19,180.15,5.97988292]
[1730188145043,2.7771,180.18,180.15,8.75738292]
[1730188145547,5.97988292,180.21,180.16,5.97988292]
[1730188145746,3.98,180.21,180.17,2.7771]
[1730188146155,3.98,180.22,180.2,5.97988292]
[1730188146452,3.98,180.22,180.18,8.75678292]
[1730188147347,2.7766,180.21,180.18,8.75678292]
[1730188149558,6.7564,180.22,180.2,5.97988292]
[1730188149747,2.7764,180.22,180.2,5.97988292]
[1730188151847,60.02,180.29,180.21,5.97988292]
[1730188152048,20.3597797,180.28,180.21,5.97988292]
[1730188153556,9.95988292,180.28,180.21,5.97988292]
[1730188153754,5.97988292,180.24,180.18,3.7338]
[1730188153948,5.97988292,180.24,180.18,9.71368292]
[1730188154149,9.95988292,180.24,180.18,9.71368292]
[1730188154448,2.7766,180.22,180.18,12.49058292]
[1730188154649,5.97988292,180.23,180.18,2.5519]
[1730188155056,2.7767,180.21,180.18,2.5519]
[1730188155451,2.7767,180.21,180.19,5.97988292]
[1730188156651,2.7767,180.2,180.19,5.97988292]
[1730188156852,3.98,180.24,180.19,5.97988292]
[1730188157147,5.97988292,180.22,180.16,2.7773]
[1730188157347,2.7767,180.21,180.16,2.7773]
[1730188157563,5.97988292,180.22,180.16,2.7773]
[1730188158163,2.7769,180.2,180.17,5.97988292]
[1730188164565,2.7765,180.22,180.18,8.75678292]
[1730188165371,5.97988292,180.22,180.17,2.7771]
[1730188165672,5.97988292,180.22,180.17,5.97988292]
[1730188165872,2.7769,180.19,180.16,5.97988292]
[1730188167067,3.98,180.24,180.18,5.97988292]
[1730188167269,3.98,180.24,180.2,5.97988292]
[1730188167675,2.7766,180.21,180.2,5.97988292]
[1730188168469,5.97988292,180.23,180.19,5.97988292]
[1730188168678,5.97988292,180.22,180.17,5.97988292]
[1730188168972,5.97988292,180.22,180.15,8.75728292]
[1730188169569,2.7767,180.2,180.15,8.75728292]
[1730188169767,5.97988292,180.22,180.15,8.75728292]
[1730188170473,2.777,180.19,180.15,8.75728292]
[1730188172272,2.777,180.19,180.15,2.7774]
[1730188172480,2.7773,180.17,180.14,8.75748292]
[1730188173278,5.97988292,180.17,180.13,1.2946]
[1730188173471,5.97988292,180.17,180.11,5.97988292]
[1730188173979,2.7776,180.15,180.11,8.75788292]
[1730188175179,5.97988292,180.17,180.11,5.97988292]
[1730188175379,2.7778,180.14,180.11,5.97988292]
[1730188175684,3.98,180.16,180.12,5.97988292]
[1730188176574,2.7775,180.15,180.12,5.97988292]
[1730188177282,2.7777,180.14,180.1,5.97988292]
[1730188177497,2.7777,180.14,180.1,8.75808292]
[1730188177783,2.7777,180.14,180.1,5.97988292]
[1730188178187,2.7777,180.14,180.1,8.75808292]
[1730188178577,2.7781,180.12,180.07,3.7037]
[1730188178886,2.7781,180.12,180.09,2.7784]
[1730188181184,2.7784,180.1,180.07,1.2507]
[1730188181571,5.97988292,180.11,180.07,1.2507]
[1730188181777,8.75808292,180.11,180.07,4.0294]
[1730188184486,2.7782,180.11,180.08,2.7785]
[1730188185080,6.758,180.12,180.08,2.7785]
[1730188187285,6.758,180.12,180.07,7.23058292]
[1730188187487,6.758,180.12,180.09,2.7784]
[1730188187787,6.758,180.12,180.09,8.75828292]
[1730188190884,6.758,180.12,180.09,5.97988292]
[1730188192075,2.7781,180.11,180.09,5.97988292]
[1730188196490,0.3393,180.2,180.1,5.97988292]
[1730188196793,5.97988292,180.18,180.12,5.97988292]
[1730188196990,3.98,180.19,180.12,5.97988292]
[1730188197187,5.97988292,180.18,180.13,2.7778]
[1730188197395,5.97988292,180.18,180.13,8.75768292]
[1730188198086,5.97988292,180.18,180.13,5.97988292]
[1730188198288,2.7775,180.16,180.13,5.97988292]
[1730188200789,6.7571,180.18,180.15,8.75738292]
[1730188201190,6.7571,180.18,180.15,5.97988292]
[1730188201487,6.7572,180.18,180.15,5.97988292]
[1730188201692,3.98,180.18,180.09,3.98]
[1730188201888,9.95988292,180.18,180.12,5.97988292]
[1730188202495,9.95988292,180.18,180.12,8.75778292]
[1730188204199,2.7775,180.16,180.12,8.75778292]
[1730188204890,2.7775,180.16,180.12,2.7779]
[1730188205086,9.95988292,180.18,180.12,8.75778292]
[1730188205291,2.7776,180.15,180.12,8.75778292]
[1730188207902,2.7776,180.15,180.14,5.97988292]
[1730188208609,5.97988292,180.19,180.14,8.75748292]
[1730188208610,3.98,180.19,180.14,8.75748292]
[1730188208803,3.98,180.19,180.16,5.97988292]
[1730188209707,3.98,180.19,180.17,5.97988292]
[1730188210107,2.7766,180.21,180.17,5.97988292]
[1730188210406,9.95988292,180.22,180.17,5.97988292]
[1730188210801,2.7768,180.2,180.17,5.97988292]
[1730188212701,2.7768,180.2,180.17,8.75708292]
[1730188213112,3.98,180.22,180.18,5.97988292]
[1730188213314,6.7565,180.22,180.19,2.7769]
[1730188213515,2.7765,180.22,180.19,2.7769]
[1730188214314,2.7766,180.21,180.18,8.75688292]
[1730188214819,5.97988292,180.22,180.16,5.97988292]
[1730188215514,2.7769,180.19,180.16,2.7773]
[1730188215716,5.97988292,180.21,180.15,5.97988292]
[1730188216020,3.98,180.23,180.14,3.7652]
[1730188216021,5.97988292,180.19,180.14,3.7652]
[1730188216513,5.97988292,180.19,180.14,9.74508292]
[1730188217317,2.7771,180.18,180.15,2.7775]
[1730188224726,2.7771,180.18,180.16,5.97988292]
[1730188227329,2.7769,180.19,180.17,5.97988292]
[1730188227722,5.97988292,180.22,180.17,5.97988292]
[1730188228123,2.777,180.18,180.17,5.97988292]
[1730188228935,5.97988292,180.21,180.14,3.7652]
[1730188229124,5.97988292,180.21,180.15,5.97988292]
[1730188229529,5.97988292,180.22,180.15,5.97988292]
[1730188229738,2.777,180.19,180.17,5.97988292]
[1730188230029,3.98,180.23,180.17,5.97988292]
[1730188230234,3.98,180.23,180.18,8.75678292]
[1730188231335,2.7766,180.21,180.18,8.75678292]
[1730188231726,2.7766,180.21,180.15,1.2199]
[1730188231727,9.95988292,180.23,180.16,2.7772]
[1730188231927,9.95988292,180.23,180.16,8.75708292]
[1730188232636,2.7768,180.2,180.18,5.97988292]
[1730188235131,2.7768,180.2,180.17,5.97988292]
[1730188235434,2.7771,180.18,180.15,2.7774]
[1730188235635,5.97988292,180.21,180.15,5.97988292]
[1730188237239,2.7771,180.18,180.15,5.97988292]
[1730188237439,9.95988292,180.23,180.17,5.97988292]
[1730188237631,11.67511347,180.28,180.2,5.97988292]
[1730188237836,9.95988292,180.27,180.2,5.97988292]
[1730188238037,2.7764,180.23,180.2,8.75648292]
[1730188238733,2.7764,180.23,180.2,5.97988292]
[1730188239745,2.7764,180.23,180.2,8.75648292]
[1730188240633,3.98,180.25,180.2,5.97988292]
[1730188240838,3.98,180.25,180.22,8.75628292]
[1730188242237,6.756,180.25,180.22,8.75628292]
[1730188242435,6.756,180.25,180.22,5.97988292]
[1730188243236,5.97988292,180.24,180.19,8.75668292]
[1730188244342,2.7765,180.22,180.19,8.75668292]
[1730188248044,2.7764,180.23,180.19,8.75668292]
[1730188248237,9.95988292,180.25,180.19,8.75668292]
[1730188248742,2.7764,180.23,180.19,8.75668292]
[1730188248944,2.7764,180.23,180.2,8.75648292]
[1730188249137,10.37801347,180.28,180.22,5.97988292]
[1730188249337,3.98,180.27,180.22,5.97988292]
[1730188249530,3.98,180.27,180.16,3.98]
[1730188249750,5.97988292,180.26,180.2,5.97988292]
[1730188249945,5.97988292,180.25,180.19,5.97988292]
[1730188250148,5.97988292,180.23,180.15,1.1841]
[1730188250340,5.97988292,180.23,180.18,5.97988292]
[1730188251052,2.7765,180.22,180.18,8.75678292]
[1730188251940,2.7765,180.22,180.19,2.7768]
[1730188252947,2.7765,180.22,180.18,5.97988292]
[1730188253142,9.95988292,180.23,180.17,2.7771]
[1730188253344,5.97988292,180.22,180.17,8.75698292]
[1730188253834,5.97988292,180.22,180.15,5.1641]
[1730188253835,2.7768,180.2,180.16,2.7772]
[1730188257145,2.7768,180.2,180.17,2.7772]
[1730188257346,2.7768,180.2,180.17,8.75708292]
[1730188258044,2.7768,180.2,180.18,5.97988292]
[1730188258959,9.95988292,180.23,180.14,5.352]
[1730188258960,2.7771,180.18,180.14,5.352]
[1730188259147,2.7771,180.18,180.14,2.5745]
[1730188260462,2.7771,180.18,180.15,2.7775]
[1730188262550,2.7771,180.18,180.16,5.97988292]
[1730188263158,5.97988292,180.22,180.16,5.97988292]
[1730188263358,2.7769,180.19,180.16,8.75718292]
[1730188264051,2.7766,180.21,180.18,8.75678292]
[1730188264957,9.95988292,180.23,180.16,5.97988292]
[1730188265150,9.95988292,180.23,180.17,2.7772]
[1730188265751,2.7767,180.21,180.17,2.7772]
[1730188266352,5.97988292,180.21,180.15,7.19768292]
[1730188266556,2.777,180.19,180.15,9.97508292]
[1730188267352,2.777,180.19,180.16,2.7773]
[1730188267552,2.7771,180.18,180.14,2.5745]
[1730188268447,2.7771,180.18,180.15,2.7774]
[1730188268851,5.97988292,180.17,180.14,1.2943]
[1730188269054,5.97988292,180.17,180.11,5.97988292]
[1730188269055,2.7773,180.16,180.11,5.97988292]
[1730188270357,2.7773,180.16,180.13,2.7778]
[1730188271459,8.75718292,180.16,180.13,2.7778]
[1730188277859,5.97988292,180.16,180.1,1.302]
[1730188278156,2.7776,180.15,180.12,2.7779]
[1730188279568,2.7773,180.16,180.13,2.7778]
[1730188283068,2.7775,180.15,180.12,8.75768292]
[1730188283575,5.97988292,180.17,180.12,8.75768292]
[1730188283963,2.7775,180.16,180.12,8.75768292]
[1730188284364,5.97988292,180.17,180.12,8.75768292]
[1730188284564,3.98,180.18,180.1,1.302]
[1730188284765,5.97988292,180.16,180.1,7.28188292]
[1730188285171,5.97988292,180.16,180.11,5.97988292]
[1730188286271,2.7778,180.14,180.11,8.75798292]
[1730188287377,2.7775,180.15,180.11,8.75798292]
[1730188288381,3.98,180.18,180.11,5.97988292]
[1730188288682,2.7774,180.16,180.12,2.7778]
[1730188289076,2.7775,180.15,180.12,2.7778]
[1730188289877,2.7775,180.15,180.11,8.75788292]
[1730188290986,2.7775,180.15,180.12,2.778]
[1730188291385,2.7773,180.17,180.12,5.97988292]
[1730188291585,3.98,180.19,180.16,2.7772]
[1730188291786,3.98,180.2,180.16,2.7772]
[1730188292091,9.95988292,180.21,180.16,2.7772]
[1730188292477,2.777,180.19,180.16,2.7772]
[1730188294598,3.98,180.21,180.17,2.7771]
[1730188296488,2.7768,180.2,180.17,2.7771]
[1730188299088,2.7765,180.22,180.19,2.7768]
[1730188299282,6.7565,180.22,180.19,2.7768]
[1730188301189,2.7765,180.22,180.19,2.7768]
[1730188301992,10.41802729,180.26,180.2,5.97988292]
[1730188302193,3.98,180.25,180.21,5.97988292]
[1730188303388,2.7761,180.24,180.21,8.75638292]
[1730188303993,2.7764,180.22,180.19,2.7769]
[1730188304299,5.97988292,180.23,180.17,7.28468292]
[1730188305895,2.7767,180.2,180.17,4.082]
[1730188309403,8.75648292,180.21,180.18,2.777]
[1730188310189,2.7766,180.21,180.18,2.777]
[1730188319408,6.7565,180.22,180.19,8.75678292]
[1730188319710,3.98,180.22,180.19,5.97988292]
[1730188320299,3.98,180.22,180.21,5.97988292]
[1730188320504,2.7761,180.24,180.21,8.75638292]
[1730188321302,2.7761,180.25,180.21,8.75638292]
[1730188322420,6.7561,180.25,180.22,2.7764]
[1730188325509,9.95988292,180.25,180.18,2.5636]
[1730188325706,2.7763,180.23,180.19,5.97988292]
[1730188327307,2.7763,180.23,180.2,2.7767]
[1730188330722,2.7764,180.22,180.19,8.75668292]
[1730188331512,2.7764,180.22,180.19,2.7768]
[1730188334513,2.7764,180.22,180.19,8.75668292]
[1730188334911,2.7764,180.22,180.17,1.3048]
[1730188334912,2.777,180.18,180.17,1.3048]
[1730188335120,5.97988292,180.22,180.17,7.28468292]
[1730188335819,3.98,180.25,180.2,5.97988292]
[1730188336017,3.98,180.24,180.22,5.97988292]
[1730188340111,6.7561,180.24,180.22,5.97988292]
[1730188341217,6.7561,180.24,180.21,2.7765]
[1730188341515,6.7561,180.24,180.21,8.75638292]
[1730188343025,6.7559,180.26,180.23,2.7763]
[1730188343725,6.7559,180.26,180.22,8.75628292]
[1730188344522,3.98,180.26,180.24,2.776]
[1730188345119,5.97988292,180.28,180.24,2.776]
[1730188345318,59.98,180.36,180.23,5.97988292]
[1730188345518,59.98,180.36,180.18,6.5564]
[1730188345519,5.97988292,180.31,180.26,8.75558292]
[1730188345725,3.98,180.3,180.26,8.75558292]
[1730188346525,9.95988292,180.3,180.24,2.776]
[1730188347128,2.7756,180.28,180.24,2.776]
[1730188347726,2.7756,180.28,180.24,8.75588292]
[1730188348026,2.7757,180.27,180.24,8.75588292]
[1730188351224,10.4142264,180.35,180.24,5.97988292]
[1730188351430,2.7755,180.29,180.26,5.97988292]
[1730188353330,5.97988292,180.3,180.26,5.97988292]
[1730188353526,2.7756,180.28,180.24,5.97988292]
[1730188354134,3.98,180.3,180.26,5.97988292]
[1730188354337,2.7754,180.29,180.26,5.97988292]
[1730188354931,2.7754,180.29,180.26,8.75558292]
[1730188361537,2.7758,180.26,180.23,4.0262]
[1730188361738,9.95988292,180.3,180.24,5.97988292]
[1730188363047,2.7755,180.29,180.24,8.75598292]
[1730188363246,9.95988292,180.3,180.24,8.75598292]
[1730188363446,9.95988292,180.3,180.24,5.97988292]
[1730188364243,2.7756,180.28,180.25,2.7759]
[1730188364443,2.7756,180.28,180.23,1.25]
[1730188364444,9.95988292,180.3,180.24,5.97988292]
[1730188365147,9.95988292,180.3,180.25,2.7759]
[1730188365350,5.97988292,180.29,180.24,5.97988292]
[1730188365647,5.97988292,180.29,180.23,1.25]
[1730188366145,2.7758,180.27,180.25,2.7759]
[1730188366351,3.98,180.3,180.26,5.97988292]
[1730188366552,9.95988292,180.3,180.24,5.97988292]
[1730188367356,2.7755,180.28,180.25,2.7759]
[1730188367952,2.7759,180.26,180.23,4.0261]
[1730188370749,2.7758,180.27,180.24,2.776]
[1730188373956,2.7758,180.26,180.23,4.0262]
[1730188375356,2.7762,180.24,180.21,2.7765]
[1730188375558,5.97988292,180.25,180.2,8.46238292]
[1730188375956,2.7762,180.24,180.2,11.23898292]
[1730188376561,2.7762,180.24,180.2,5.2591]
[1730188378672,2.7763,180.23,180.2,5.2591]
[1730188379462,5.97988292,180.24,180.19,5.97988292]
[1730188379664,5.97988292,180.24,180.17,5.97988292]
[1730188380365,5.97988292,180.22,180.15,2.4913]
[1730188380571,9.93988292,180.22,180.15,8.47118292]
[1730188381273,2.7767,180.2,180.17,2.7772]
[1730188384366,5.97988292,180.21,180.15,8.47118292]
[1730188384567,5.97988292,180.18,180.14,1.306]
[1730188385569,5.97988292,180.19,180.14,1.306]
[1730188385771,5.97988292,180.21,180.14,7.28588292]
[1730188385970,2.7768,180.2,180.16,2.7773]
[1730188386674,2.7769,180.19,180.16,2.7773]
[1730188389376,2.7767,180.2,180.17,2.7771]
[1730188391673,2.7767,180.2,180.15,5.97988292]
[1730188391879,2.7767,180.2,180.16,2.7773]
[1730188394581,2.777,180.19,180.16,2.7773]
[1730188398991,2.7767,180.21,180.18,2.7769]
[1730188399486,2.7767,180.21,180.14,1.306]
[1730188399487,3.98,180.22,180.19,2.7768]
[1730188400588,6.7564,180.22,180.19,2.7768]
[1730188401393,8.75658292,180.21,180.18,2.777]
[1730188409487,2.7767,180.21,180.18,2.777]
[1730188409887,2.7766,180.21,180.18,2.777]
[1730188413594,3.96,180.22,180.16,5.97988292]
[1730188413796,12.71628292,180.22,180.19,2.7768]
[1730188414491,5.97988292,180.23,180.17,5.97988292]
[1730188414695,12.71618292,180.23,180.17,5.97988292]